bitfinex/quotes_SOLUSD_20240612
["timestamp","ask_amount","ask_price","bid_price","bid_amount"]
[1718203007217,0.17,160.33,160.26,16.4655]
[1718203008627,2.4778,160.33,160.26,16.4655]
[1718203008822,2.6479,160.32,160.26,16.4655]
[1718203009415,0.34,160.32,160.26,16.4655]
[1718203009618,2.6478,160.32,160.26,16.4655]
[1718203009930,0.34,160.32,160.26,16.4655]
[1718203010433,2.6479,160.32,160.26,16.4655]
[1718203010641,0.17,160.31,160.26,16.4655]
[1718203010842,0.34,160.31,160.26,16.4655]
[1718203011042,0.34,160.3,160.26,16.4655]
[1718203015628,2.6481,160.3,160.26,16.4655]
[1718203015828,0.34,160.29,160.26,16.4655]
[1718203016123,0.34,160.28,160.26,16.4655]
[1718203026857,0.17,160.26,160.22,23.0222]
[1718203027061,0.51,160.26,160.22,23.0222]
[1718203027373,0.34,160.26,160.22,23.0222]
[1718203027537,0.17,160.26,160.22,23.0222]
[1718203027741,0.51,160.27,160.22,15.5422]
[1718203027939,0.51,160.27,160.22,23.0222]
[1718203028154,0.34,160.27,160.24,7.48]
[1718203028334,0.34,160.28,160.24,7.48]
[1718203029555,0.34,160.28,160.23,7.48]
[1718203030236,0.34,160.28,160.24,7.48]
[1718203030436,0.34,160.28,160.23,7.48]
[1718203031161,0.34,160.28,160.24,7.48]
[1718203031662,2.6484,160.28,160.24,7.48]
[1718203032261,0.34,160.28,160.24,7.48]
[1718203032560,2.6484,160.28,160.24,7.48]
[1718203033135,7.82,160.28,160.22,15.5422]
[1718203033352,2.3087,160.26,160.22,23.0222]
[1718203034054,9.7886,160.27,160.22,23.0222]
[1718203034264,0.17,160.26,160.22,23.0222]
[1718203034442,0.17,160.27,160.22,23.0222]
[1718203035045,0.17,160.27,160.23,7.48]
[1718203037855,0.34,160.28,160.24,7.48]
[1718203038368,2.3081,160.31,160.26,7.48]
[1718203038549,0.34,160.3,160.25,7.48]
[1718203038944,2.6481,160.3,160.25,7.48]
[1718203039144,2.4783,160.29,160.25,7.48]
[1718203039345,0.17,160.28,160.24,7.48]
[1718203039861,0.34,160.28,160.24,7.48]
[1718203040075,0.17,160.27,160.22,15.5422]
[1718203040368,0.17,160.27,160.23,7.48]
[1718203040550,0.34,160.28,160.23,7.48]
[1718203040967,358.2,160.34,160.22,15.5422]
[1718203041163,358.2,160.34,160.26,7.48]
[1718203041573,7.48,160.32,160.26,7.48]
[1718203042271,9.7879,160.32,160.26,7.48]
[1718203042771,0.34,160.31,160.26,7.48]
[1718203044064,360.5077,160.34,160.22,15.5422]
[1718203044374,7.48,160.31,160.25,7.48]
[1718203045272,0.17,160.31,160.22,15.5422]
[1718203045475,7.48,160.3,160.24,7.48]
[1718203045678,7.99,160.29,160.23,7.48]
[1718203045860,10.2983,160.29,160.23,7.48]
[1718203046055,7.48,160.28,160.23,7.48]
[1718203046783,7.99,160.29,160.23,7.48]
[1718203046961,0.51,160.29,160.24,7.48]
[1718203047160,0.34,160.29,160.24,7.48]
[1718203047362,7.82,160.3,160.24,7.48]
[1718203048681,0.17,160.3,160.25,7.48]
[1718203048856,7.48,160.33,160.27,7.48]
[1718203049759,2.3076,160.34,160.27,7.48]
[1718203049965,7.48,160.33,160.27,7.48]
[1718203051163,107.48,160.36,160.3,7.48]
[1718203051483,109.7873,160.36,160.3,7.48]
[1718203051670,2.3074,160.35,160.3,7.48]
[1718203052072,9.7874,160.35,160.29,7.48]
[1718203052981,0.17,160.34,160.29,7.48]
[1718203053187,0.34,160.34,160.3,7.48]
[1718203053481,0.2,160.31,160.28,22.209]
[1718203053675,0.2,160.31,160.28,7.48]
[1718203053882,0.2,160.31,160.26,16.1261]
[1718203053883,2.508,160.31,160.26,16.1261]
[1718203054060,0.34,160.3,160.26,16.1261]
[1718203054394,0.17,160.3,160.26,23.6061]
[1718203054563,0.34,160.3,160.26,23.6061]
[1718203054874,0.34,160.3,160.25,7.48]
[1718203055682,2.6481,160.3,160.22,15.3739]
[1718203055907,7.65,160.29,160.23,7.48]
[1718203056200,7.82,160.28,160.22,22.8539]
[1718203056362,102.6485,160.28,160.22,15.3739]
[1718203056568,7.48,160.26,160.18,15.5455]
[1718203056795,7.48,160.26,160.2,7.48]
[1718203056968,0.17,160.25,160.2,7.48]
[1718203057168,0.17,160.25,160.21,7.48]
[1718203057362,0.17,160.25,160.18,15.5455]
[1718203057567,0.34,160.25,160.2,7.48]
[1718203057990,0.17,160.25,160.18,15.5455]
[1718203058293,0.17,160.25,160.2,7.48]
[1718203058584,0.51,160.25,160.2,7.48]
[1718203058777,7.48,160.23,160.18,15.5455]
[1718203058971,7.48,160.23,160.17,13.4851]
[1718203058972,0.34,160.22,160.17,13.4851]
[1718203059371,7.82,160.22,160.14,16.3158]
[1718203059572,7.82,160.22,160.16,7.48]
[1718203059783,7.82,160.22,160.14,16.3158]
[1718203059991,7.48,160.21,160.14,16.3158]
[1718203060286,7.48,160.21,160.15,7.48]
[1718203060493,7.82,160.22,160.16,7.48]
[1718203060896,7.82,160.22,160.17,7.48]
[1718203061394,7.82,160.22,160.14,16.3158]
[1718203061395,7.82,160.22,160.16,7.48]
[1718203061585,0.34,160.21,160.14,16.3158]
[1718203061785,0.34,160.22,160.16,7.48]
[1718203061989,0.17,160.25,160.18,7.48]
[1718203062191,7.48,160.24,160.18,7.48]
[1718203062492,0.34,160.23,160.18,7.48]
[1718203062675,0.34,160.23,160.14,16.3158]
[1718203062676,0.17,160.22,160.14,16.3158]
[1718203062876,7.99,160.23,160.18,7.48]
[1718203063078,7.99,160.23,160.17,7.48]
[1718203064277,0.51,160.23,160.17,7.48]
[1718203064476,0.51,160.23,160.14,16.3158]
[1718203064477,0.17,160.22,160.14,16.3158]
[1718203064692,7.48,160.21,160.15,7.48]
[1718203064996,100.51,160.23,160.15,7.48]
[1718203064997,0.51,160.23,160.17,7.48]
[1718203065291,0.51,160.23,160.18,7.48]
[1718203065493,7.99,160.23,160.18,7.48]
[1718203065706,7.82,160.23,160.18,7.48]
[1718203066304,8.5942,160.26,160.2,7.48]
[1718203066512,6.1724,160.3,160.21,45.0]
[1718203066717,7.48,160.28,160.23,7.48]
[1718203067209,2.3083,160.29,160.23,7.48]
[1718203067376,7.48,160.28,160.22,7.48]
[1718203067583,7.48,160.28,160.23,52.48]
[1718203068129,12.6666647,160.3,160.23,52.48]
[1718203068299,7.48,160.28,160.23,52.48]
[1718203070731,6.49559248,160.28,160.24,7.48]
[1718203070895,0.17,160.27,160.24,7.48]
[1718203071323,0.34,160.27,160.24,7.48]
[1718203071497,0.34,160.27,160.19,23.2011]
[1718203071703,0.34,160.26,160.22,7.48]
[1718203071929,0.17,160.25,160.19,16.6363]
[1718203072105,7.99,160.25,160.19,7.48]
[1718203072293,0.34,160.24,160.19,7.48]
[1718203072496,0.34,160.23,160.19,7.48]
[1718203073226,0.34,160.23,160.18,7.48]
[1718203073402,0.34,160.23,160.15,21.307]
[1718203073403,0.34,160.23,160.2,7.48]
[1718203073801,0.34,160.23,160.19,7.48]
[1718203074908,0.17,160.22,160.15,21.307]
[1718203075105,0.17,160.22,160.17,7.48]
[1718203075106,7.82,160.22,160.17,7.48]
[1718203075421,0.34,160.21,160.16,52.48]
[1718203078603,0.34,160.21,160.17,7.48]
[1718203079227,0.34,160.21,160.18,7.48]
[1718203079401,0.17,160.21,160.16,45.0]
[1718203079607,0.17,160.21,160.18,7.48]
[1718203079807,0.17,160.21,160.17,7.48]
[1718203080602,0.34,160.21,160.16,45.0]
[1718203080803,0.17,160.2,160.17,7.48]
[1718203081021,0.34,160.2,160.16,45.0]
[1718203081210,0.34,160.2,160.17,7.48]
[1718203081405,0.34,160.21,160.17,7.48]
[1718203081610,0.51,160.21,160.17,7.48]
[1718203082025,0.17,160.19,160.11,21.8909]
[1718203082227,0.51,160.19,160.14,7.48]
[1718203082609,2.4801,160.17,160.11,15.857]
[1718203082799,0.34,160.16,160.13,7.48]
[1718203083004,0.17,160.15,160.13,7.48]
[1718203083213,0.17,160.15,160.09,5.43921189]
[1718203083619,100.0,160.18,160.14,7.48]
[1718203083826,0.51,160.17,160.15,7.48]
[1718203084123,6.49356467,160.24,160.15,7.48]
[1718203084325,102.3089,160.25,160.16,7.48]
[1718203084505,102.3089,160.25,160.2,7.48]
[1718203084706,106.50829243,160.25,160.2,7.48]
[1718203085106,106.50829243,160.25,160.17,45.0]
[1718203085315,108.81719243,160.25,160.17,45.0]
[1718203085825,0.17,160.24,160.17,45.0]
[1718203086330,106.50829243,160.25,160.17,45.0]
[1718203087029,6.50829243,160.25,160.17,45.0]
[1718203087226,258.2,160.26,160.17,67.45]
[1718203088334,102.3083,160.29,160.17,67.45]
[1718203088832,8.8144697,160.28,160.17,67.45]
[1718203089011,6.5059697,160.28,160.17,67.45]
[1718203089213,0.17,160.26,160.17,67.45]
[1718203089413,0.68,160.26,160.17,67.45]
[1718203090326,0.68,160.26,160.15,22.45]
[1718203090327,0.17,160.24,160.15,22.45]
[1718203090633,0.68,160.24,160.15,22.45]
[1718203091727,0.68,160.24,160.16,45.0]
[1718203091912,0.17,160.22,160.14,8.25125905]
[1718203092229,0.17,160.22,160.09,10.49328956]
[1718203092230,0.68,160.22,160.12,38.6008]
[1718203093512,0.68,160.22,160.13,45.0]
[1718203098613,0.17,160.19,160.12,38.6008]
[1718203098810,0.68,160.19,160.12,38.6008]
[1718203100149,0.68,160.19,160.13,45.0]
[1718203102542,100.0,160.18,160.12,16.1508]
[1718203102744,2.4802,160.16,160.08,22.98625349]
[1718203102924,0.34,160.15,160.08,15.1931]
[1718203103125,0.17,160.14,160.08,15.1931]
[1718203105723,0.17,160.1,160.07,7.49]
[1718203106041,0.68,160.1,160.0,45.0598]
[1718203106232,0.68,160.1,160.07,7.49]
[1718203106636,0.68,160.1,160.0,45.0598]
[1718203106952,0.68,160.1,160.06,7.49]
[1718203107333,0.17,160.08,160.06,7.49]
[1718203107520,0.68,160.08,160.07,7.49]
[1718203107719,0.68,160.08,160.0,45.0598]
[1718203107720,0.17,160.06,160.0,15.0998]
[1718203107927,0.68,160.06,160.0,15.0998]
[1718203108448,0.68,160.06,160.03,7.49]
[1718203108947,0.68,160.06,160.0,15.0998]
[1718203109323,0.68,160.06,160.03,2.312]
[1718203109731,0.68,160.06,160.02,2.3121]
[1718203109935,0.68,160.06,160.03,2.312]
[1718203110552,0.51,160.06,159.97,22.49]
[1718203110847,0.51,160.06,160.04,2.3119]
[1718203111150,0.17,160.05,160.02,2.312]
[1718203111350,0.68,160.05,160.02,2.312]
[1718203111536,100.68,160.05,160.01,2.3122]
[1718203112145,100.68,160.05,160.0,2.3124]
[1718203112929,100.68,160.05,160.01,2.3123]
[1718203114428,100.68,160.05,160.02,2.3121]
[1718203115245,100.68,160.05,159.99,2.3125]
[1718203115451,100.68,160.05,160.0,2.3123]
[1718203115646,100.68,160.05,159.96,42.49]
[1718203115962,100.68,160.05,160.01,2.3122]
[1718203116168,100.68,160.05,159.97,45.0]
[1718203116854,100.68,160.05,160.01,2.3122]
[1718203117444,100.68,160.05,160.02,2.3121]
[1718203118151,0.68,160.05,159.97,45.0]
[1718203118461,0.17,160.03,159.99,2.3126]
[1718203118649,0.68,160.03,159.99,2.3126]
[1718203118828,0.68,160.03,159.95,15.3629]
[1718203118829,0.17,160.01,159.95,15.3629]
[1718203119035,0.17,160.01,159.96,2.3129]
[1718203119036,0.51,160.01,159.96,2.3129]
[1718203119227,0.17,160.0,159.91,23.1227]
[1718203119455,0.17,159.98,159.95,2.3132]
[1718203119652,0.68,159.98,159.95,2.3132]
[1718203119949,0.17,159.96,159.93,2.3133]
[1718203120151,0.17,159.96,159.91,16.6067]
[1718203120152,0.68,159.96,159.92,2.3135]
[1718203120945,0.68,159.96,159.93,2.3134]
[1718203121329,0.68,159.96,159.89,22.49]
[1718203121330,0.68,159.96,159.94,2.3133]
[1718203121537,0.68,159.96,159.89,22.49]
[1718203121749,0.17,159.94,159.9,2.3138]
[1718203121958,0.68,159.94,159.89,22.49]
[1718203122234,0.34,159.94,159.93,2.3135]
[1718203122454,0.17,159.94,159.93,2.3135]
[1718203122654,0.34,159.94,159.93,2.3135]
[1718203123353,0.51,159.94,159.89,22.49]
[1718203123563,0.34,159.93,159.92,2.3135]
[1718203123743,0.17,159.93,159.92,2.3135]
[1718203123943,100.0,159.99,159.89,22.49]
[1718203124145,100.17,159.99,159.89,22.49]
[1718203124352,100.0,159.97,159.94,2.3132]
[1718203124664,100.0,159.95,159.92,2.3135]
[1718203125241,100.0,159.95,159.91,2.3136]
[1718203125443,0.68,159.94,159.92,2.3136]
[1718203125838,0.68,159.94,159.91,2.3137]
[1718203126060,0.68,159.94,159.89,22.49]
[1718203126061,100.0,159.93,159.89,22.49]
[1718203126265,0.34,159.92,159.89,2.3139]
[1718203126565,0.34,159.91,159.89,2.3139]
[1718203126937,0.34,159.91,159.9,2.3139]
[1718203127151,0.51,159.91,159.89,2.314]
[1718203127349,0.51,159.91,159.9,2.3139]
[1718203127763,0.68,159.91,159.9,2.3139]
[1718203128182,0.51,159.91,159.86,22.49]
[1718203128385,0.17,159.9,159.89,2.314]
[1718203129238,0.34,159.9,159.89,2.314]
[1718203129566,0.68,159.9,159.89,2.314]
[1718203129748,0.51,159.9,159.89,2.314]
[1718203132859,0.51,159.9,159.89,9.824]
[1718203133666,0.68,159.9,159.88,2.3141]
[1718203133867,0.34,159.89,159.88,2.3141]
[1718203134169,0.51,159.89,159.88,9.8241]
[1718203134847,0.51,159.89,159.84,30.04]
[1718203134848,0.17,159.88,159.86,2.3143]
[1718203135054,0.34,159.88,159.87,2.3143]
[1718203135380,0.68,159.88,159.87,9.8243]
[1718203135540,0.68,159.88,159.82,15.4657]
[1718203135745,0.51,159.87,159.85,2.3146]
[1718203135949,0.51,159.87,159.86,9.8245]
[1718203136277,0.68,159.87,159.86,2.3145]
[1718203136454,100.68,159.87,159.86,9.8245]
[1718203136641,100.68,159.87,159.85,2.3145]
[1718203136843,0.17,159.86,159.85,2.3145]
[1718203137165,0.34,159.86,159.78,22.9948]
[1718203137348,0.17,159.84,159.83,2.3149]
[1718203137550,0.34,159.84,159.83,2.3149]
[1718203137875,0.68,159.84,159.83,2.3149]
[1718203139180,0.68,159.84,159.78,16.5494]
[1718203139345,0.34,159.83,159.81,2.3152]
[1718203139546,0.34,159.82,159.81,2.3152]
[1718203139758,0.68,159.82,159.79,2.3154]
[1718203139956,0.51,159.81,159.8,2.3153]
[1718203140160,0.68,159.81,159.8,2.3153]
[1718203140675,0.17,159.8,159.74,16.3268]
[1718203140972,0.34,159.8,159.77,2.3157]
[1718203141179,0.17,159.77,159.75,2.3159]
[1718203141477,0.17,159.83,159.76,22.54]
[1718203141653,0.34,159.82,159.81,2.3152]
[1718203141853,108.5942,159.86,159.76,38.0839]
[1718203142049,100.0,159.81,159.7,6.0534]
[1718203142277,100.0,159.79,159.76,2.3158]
[1718203142583,100.0,159.79,159.77,2.3158]
[1718203142753,100.0,159.81,159.72,22.54]
[1718203142949,100.0,159.81,159.77,2.3157]
[1718203143273,0.17,159.8,159.77,2.3157]
[1718203143453,0.68,159.8,159.77,2.3157]
[1718203143650,0.68,159.8,159.72,22.54]
[1718203144168,0.68,159.8,159.75,2.316]
[1718203144350,0.68,159.8,159.76,2.3159]
[1718203144669,0.17,159.8,159.74,22.54]
[1718203144851,0.17,159.8,159.79,2.3155]
[1718203145055,100.0,159.83,159.8,2.3153]
[1718203145249,100.0,159.83,159.79,2.3155]
[1718203145768,6.50161068,159.82,159.79,2.3155]
[1718203146171,6.50161068,159.82,159.8,2.3153]
[1718203146361,6.50161068,159.82,159.78,2.3156]
[1718203146674,0.34,159.81,159.8,2.3153]
[1718203146971,0.51,159.81,159.79,2.3154]
[1718203147369,0.51,159.81,159.79,2.3155]
[1718203147564,0.51,159.81,159.78,2.3156]
[1718203147769,0.51,159.81,159.75,67.54]
[1718203147770,0.51,159.81,159.79,2.3154]
[1718203147974,6.50161068,159.82,159.75,67.54]
[1718203148177,100.0,159.83,159.75,67.54]
[1718203148573,100.0,159.83,159.78,2.3156]
[1718203149175,0.17,159.82,159.78,2.3156]
[1718203149375,0.68,159.82,159.78,2.3156]
[1718203149557,100.0,159.81,159.77,2.3157]
[1718203149760,0.51,159.8,159.77,2.3157]
[1718203149959,0.17,159.77,159.73,16.5248]
[1718203150163,0.51,159.77,159.74,2.3162]
[1718203150466,0.51,159.77,159.73,16.5248]
[1718203150467,6.50282634,159.8,159.73,39.0648]
[1718203150670,100.0,159.84,159.79,2.3155]
[1718203150869,108.5942,159.86,159.73,39.0648]
[1718203151069,108.5942,159.86,159.81,2.3152]
[1718203151262,115.09556312,159.86,159.81,2.3151]
[1718203151668,100.0,159.84,159.76,22.54]
[1718203151990,100.0,159.82,159.73,16.5248]
[1718203152158,100.0,159.84,159.76,22.54]
[1718203152354,108.5942,159.86,159.77,45.0]
[1718203152558,108.5942,159.86,159.81,2.3151]
[1718203152867,100.0,159.84,159.77,45.0]
[1718203153179,100.0,159.82,159.78,2.3156]
[1718203153388,0.17,159.81,159.79,2.3154]
[1718203154276,0.17,159.8,159.75,22.54]
[1718203154482,0.17,159.8,159.76,2.3159]
[1718203154668,100.17,159.8,159.76,2.3159]
[1718203154867,0.51,159.79,159.76,2.3159]
[1718203155264,100.17,159.78,159.75,2.3161]
[1718203155459,0.51,159.77,159.75,2.3161]
[1718203155671,0.17,159.77,159.75,2.3161]
[1718203155866,0.17,159.77,159.76,2.3159]
[1718203156182,0.34,159.78,159.76,2.3159]
[1718203156475,0.34,159.79,159.73,39.0648]
[1718203156680,0.17,159.81,159.79,2.3154]
[1718203156881,0.34,159.81,159.79,2.3154]
[1718203158175,108.5942,159.86,159.75,22.54]
[1718203158367,108.5942,159.86,159.81,2.3151]
[1718203158778,100.0,159.84,159.8,2.3153]
[1718203159377,100.0,159.84,159.79,2.3154]
[1718203159571,108.5942,159.86,159.78,45.0]
[1718203159785,100.0,159.86,159.82,2.315]
[1718203160073,0.34,159.85,159.82,2.315]
[1718203160376,100.0,159.88,159.83,2.3149]
[1718203160770,100.0,159.86,159.78,45.0]
[1718203160972,100.0,159.86,159.8,2.3153]
[1718203161471,100.0,159.84,159.78,2.3155]
[1718203161676,100.0,159.84,159.79,2.3154]
[1718203161884,100.0,159.84,159.76,22.54]
[1718203161885,0.17,159.83,159.78,2.3156]
[1718203162104,0.68,159.83,159.79,2.3154]
[1718203162465,0.17,159.8,159.77,2.3157]
[1718203162666,0.17,159.8,159.73,23.1806]
[1718203162667,0.68,159.8,159.78,2.3156]
[1718203163068,0.68,159.8,159.77,2.3157]
[1718203163477,0.17,159.78,159.74,2.3161]
[1718203163665,0.68,159.78,159.75,2.316]
[1718203164468,0.17,159.76,159.69,6.2373]
[1718203164689,0.17,159.74,159.71,2.3165]
[1718203164886,0.68,159.74,159.72,2.3165]
[1718203165097,100.0,159.77,159.73,2.3162]
[1718203165301,100.0,159.77,159.68,16.4197]
[1718203165302,0.68,159.76,159.74,2.3162]
[1718203166272,100.0,159.8,159.75,2.316]
[1718203166472,0.51,159.79,159.76,2.3158]
[1718203166690,0.51,159.79,159.77,2.3158]
[1718203166691,0.17,159.78,159.77,2.3158]
[1718203167199,0.17,159.78,159.74,2.3161]
[1718203167897,0.17,159.78,159.75,2.316]
[1718203168299,100.0,159.79,159.75,2.316]
[1718203168494,100.0,159.79,159.76,2.3158]
[1718203169485,0.34,159.78,159.71,22.54]
[1718203169789,0.17,159.78,159.77,2.3158]
[1718203170099,108.5942,159.83,159.78,2.3156]
[1718203170304,100.0,159.85,159.77,22.54]
[1718203170608,100.0,159.85,159.8,2.3153]
[1718203170974,100.0,159.83,159.77,22.54]
[1718203171175,100.0,159.81,159.72,6.114]
[1718203171373,100.0,159.81,159.76,2.3158]
[1718203171587,100.0,159.83,159.77,2.3158]
[1718203171793,100.0,159.83,159.78,2.3156]
[1718203172074,0.68,159.82,159.78,2.3156]
[1718203172480,0.68,159.82,159.79,2.3155]
[1718203172674,0.68,159.82,159.77,2.3157]
[1718203172981,0.17,159.8,159.77,2.3157]
[1718203173173,0.68,159.8,159.77,2.3157]
[1718203173383,0.68,159.8,159.76,2.3159]
[1718203174485,0.17,159.77,159.74,2.3161]
[1718203174815,0.68,159.77,159.74,2.3161]
[1718203175287,0.17,159.73,159.66,15.1424]
[1718203175486,0.34,159.73,159.71,2.3166]
[1718203175702,0.68,159.73,159.71,2.3166]
[1718203175898,0.51,159.73,159.67,22.57895141]
[1718203176089,0.51,159.73,159.7,2.3167]
[1718203176581,0.51,159.73,159.67,0.03895141]
[1718203176782,0.51,159.73,159.71,2.3166]
[1718203177384,0.51,159.73,159.67,67.57895141]
[1718203177385,0.51,159.73,159.7,2.3167]
[1718203177702,0.17,159.72,159.7,2.3168]
[1718203177895,0.51,159.72,159.7,2.3168]
[1718203178290,0.51,159.72,159.67,0.03895141]
[1718203178291,0.51,159.72,159.68,2.317]
[1718203178504,0.51,159.72,159.67,0.03895141]
[1718203178685,0.17,159.71,159.69,2.3168]
[1718203179013,100.51,159.71,159.67,2.35615141]
[1718203179196,0.17,159.7,159.68,2.317]
[1718203179403,0.68,159.7,159.69,2.3169]
[1718203179589,0.51,159.7,159.68,2.3171]
[1718203180179,0.17,159.7,159.69,2.3169]
[1718203180383,0.17,159.72,159.69,2.3169]
[1718203180615,0.68,159.72,159.69,2.3169]
[1718203181185,0.17,159.72,159.67,0.03895141]
[1718203181387,100.0,159.75,159.67,0.03895141]
[1718203181613,100.0,159.77,159.68,22.54]
[1718203181791,100.0,159.77,159.73,2.3163]
[1718203182103,8.5942,159.78,159.74,2.3162]
[1718203182523,8.5942,159.78,159.75,2.3161]
[1718203182687,100.0,159.77,159.74,2.3162]
[1718203182887,100.0,159.77,159.69,45.0]
[1718203182888,100.0,159.75,159.71,2.3166]
[1718203183131,100.0,159.77,159.72,2.3165]
[1718203183290,100.0,159.77,159.73,2.3163]
[1718203183291,0.17,159.76,159.73,2.3163]
[1718203183488,0.68,159.76,159.69,45.0]
[1718203183714,0.68,159.76,159.73,2.3163]
[1718203183922,0.68,159.76,159.69,45.0]
[1718203184106,0.17,159.8,159.75,2.3161]
[1718203184311,100.0,159.81,159.76,2.3159]
[1718203184621,100.0,159.86,159.81,2.3151]
[1718203184791,100.0,159.86,159.78,22.54]
[1718203184997,102.3143,159.88,159.81,2.3151]
[1718203185316,100.0,159.88,159.79,51.2706]
[1718203185491,100.0,159.88,159.83,2.3149]
[1718203185689,100.0,159.88,159.82,2.315]
[1718203185997,100.0,159.88,159.83,2.3149]
[1718203186206,100.0,159.9,159.79,51.2706]
[1718203186412,100.0,159.9,159.85,2.3145]
[1718203186716,258.2,159.91,159.86,2.3144]
[1718203186920,258.2,159.91,159.81,22.54]
[1718203187127,258.2,159.91,159.82,45.0]
[1718203187313,258.2,159.91,159.85,2.3145]
[1718203187631,258.2,159.91,159.86,2.3144]
[1718203187809,258.2,159.91,159.87,2.3142]
[1718203187999,258.2,159.91,159.88,2.3141]
[1718203188199,100.0,159.94,159.88,2.3141]
[1718203189525,2.3132,159.95,159.88,2.3141]
[1718203189825,2.3132,159.95,159.89,2.314]
[1718203190599,2.3132,159.95,159.88,2.3141]
[1718203191534,102.9933,159.94,159.88,2.3141]
[1718203191695,0.17,159.91,159.86,2.3143]
[1718203191896,100.0,159.9,159.85,2.3145]
[1718203192103,0.51,159.89,159.86,2.3144]
[1718203192308,0.34,159.89,159.85,2.3145]
[1718203192637,100.0,160.02,159.88,26.29]
[1718203192804,109.27819641,160.04,159.89,20.34]
[1718203192805,102.3119,160.04,159.89,20.34]
[1718203193005,102.3119,160.04,159.98,2.3127]
[1718203193213,102.3119,160.04,159.97,2.3128]
[1718203193533,100.0,160.04,159.98,2.3127]
[1718203194305,102.3119,160.04,159.97,2.3128]
[1718203194725,258.2,160.05,159.95,16.6125]
[1718203194726,0.17,160.01,159.95,16.6125]
[1718203195038,100.0,160.0,159.95,16.6125]
[1718203195240,100.0,160.0,159.95,2.3131]
[1718203195901,0.17,159.99,159.95,2.3131]
[1718203196125,0.68,159.99,159.95,2.3131]
[1718203196317,0.68,159.99,159.91,22.8684]
[1718203196512,0.68,159.99,159.94,2.3132]
[1718203196714,0.68,159.99,159.92,45.0]
[1718203196912,0.68,159.99,159.95,2.3131]
[1718203197119,0.68,159.99,159.96,2.3129]
[1718203197522,0.68,159.99,159.97,2.3129]
[1718203198120,0.68,159.99,159.92,45.0]
[1718203198535,0.68,159.99,159.95,2.3131]
[1718203199241,0.68,159.99,159.96,2.313]
[1718203199415,0.68,159.99,159.97,2.3129]
[1718203199944,0.68,159.99,159.98,2.3127]